[Event "4NCL Div 1 2024-25"]
[Site "England"]
[Date "2025.04.05"]
[Round "7.40"]
[White "Pert, Nina"]
[Black "Ledger, Stephen C"]
[Result "0-1"]
[Annotator "ChessBase"]
[ECO "B23"]
[WhiteElo "1984"]
[BlackElo "2013"]
[PlyCount "116"]
[EventDate "2024.11.23"]
[EventType "team-tourn"]
[EventCountry "ENG"]
[SourceTitle "playchess.com"]
[Source "ChessBase"]
[SourceQuality "1"]
[TimeControl "40/6000+30:3000+30"]

1. e4 {[%emt 0:10:06]} c5 {[%emt 0:10:16]} 2. Nc3 {[%emt 0:00:19]} Nc6 {[%emt 0:00:30]} 3. f4 {[%emt 0:00:45]} g6 {[%emt 0:01:19]} 4. Nf3 {[%emt 0:01:00]} Bg7 {[%emt 0:00:22]} 5. Be2 {[%emt 0:02:33]} d6 {[%emt 0:04:00]} 6. O-O {[%emt 0:01:47]} e6 {[%emt 0:03:23]} 7. d3 {[%emt 0:05:11]} Nge7 {[%emt 0:01:04]} 8. Qe1 {[%emt 0:11:03]} Nd4 {[%emt 0:03:47]} 9. Nxd4 {[%emt 0:05:09]} cxd4 {[%emt 0:03:10]} 10. Nb1 {[%emt 0:01:03]} O-O {[%emt 0:05:44]} 11. Nd2 {[%emt 0:06:12]} Bd7 {[%emt 0:04:36]} 12. Nf3 {[%emt 0:05:10]} Rc8 {[%emt 0:04:41]} 13. Bd1 {[%emt 0:05:13]} Nc6 {[%emt 0:06:26]} 14. Kh1 {[%emt 0:06:12]} f5 {[%emt 0:11:49]} 15. exf5 {[%emt 0:01:50]} gxf5 {[%emt 0:02:29]} 16. Ng5 {[%emt 0:07:59]} Qf6 {[%emt 0:05:02]} 17. Bf3 {[%emt 0:03:03]} h6 {[%emt 0:03:21]} 18. Nh3 {[%emt 0:00:49]} e5 {[%emt 0:06:30]} 19. Nf2 {[%emt 0:05:03]} Rfe8 {[%emt 0:05:40]} 20. Bh5 {[%emt 0:10:54]} Re7 {[%emt 0:03:42]} 21. fxe5 {[%emt 0:01:39]} Qh4 {[%emt 0:05:57]} 22. Bf3 {[%emt 0:03:56]} dxe5 {[%emt 0:05:07]} 23. g3 {[%emt 0:01:09]} Qf6 {[%emt 0:01:01]} 24. Bd2 {[%emt 0:04:18]} Qd6 {[%emt 0:01:42]} 25. Bg2 {[%emt 0:01:38]} Be6 {[%emt 0:01:54]} 26. Qe2 {[%emt 0:02:27]} Nb4 {[%emt 0:04:04]} 27. Bxb4 {[%emt 0:01:30]} Qxb4 {[%emt 0:00:09]} 28. Nd1 {[%emt 0:01:17]} Rf8 {[%emt 0:03:13]} 29. a4 {[%emt 0:03:25]} Qc5 {[%emt 0:00:34]} 30. Nf2 {[%emt 0:00:48]} Bd5 {[%emt 0:00:37]} 31. Nh3 {[%emt 0:00:47]} Rc7 {[%emt 0:01:14]} 32. Rac1 {[%emt 0:00:52]} Qc6 {[%emt 0:01:10]} 33. b3 {[%emt 0:00:11]} Bxg2+ {[%emt 0:01:11]} 34. Qxg2 {[%emt 0:00:03]} Qxg2+ {[%emt 0:00:21]} 35. Kxg2 {[%emt 0:00:02]} Kh7 {[%emt 0:00:57]} 36. Rfe1 {[%emt 0:00:39]} Kg6 {[%emt 0:00:35]} 37. Re2 {[%emt 0:00:49]} Rfc8 {[%emt 0:00:36]} 38. Nf2 {[%emt 0:00:17]} Rc3 {[%emt 0:00:28]} 39. g4 {[%emt 0:00:44]} f4 {[%emt 0:00:43]} 40. Kf3 {[%emt 0:01:53]} Rxb3 {[%emt 0:00:29]} 41. Ne4 {[%emt 0:23:43]} Rxd3+ {[%emt 0:26:21]} 42. Kf2 {[%emt 0:01:40]} Re3 {[%emt 0:02:09]} 43. Nd6 {[%emt 0:00:54]} Rc7 {[%emt 0:01:50]} 44. Rd2 {[%emt 0:04:14]} Bf8 {[%emt 0:02:28]} 45. Nf5 {[%emt 0:03:11]} Bb4 {[%emt 0:01:57]} 46. Re2 {[%emt 0:01:05]} Rxe2+ {[%emt 0:01:47]} 47. Kxe2 {[%emt 0:00:04]} Ba3 {[%emt 0:03:31]} 48. Rb1 {[%emt 0:00:31]} Rxc2+ {[%emt 0:01:41]} 49. Kd3 {[%emt 0:00:19]} Rb2 {[%emt 0:00:59]} 50. Re1 {[%emt 0:02:35]} Rb3+ {[%emt 0:01:43]} 51. Kc4 {[%emt 0:01:10]} Rc3+ {[%emt 0:01:51]} 52. Kd5 {[%emt 0:00:08]} d3 {[%emt 0:02:13]} 53. Kxe5 {[%emt 0:02:18]} Rc1 {[%emt 0:02:59]} 54. Re4 {[%emt 0:05:49]} d2 {[%emt 0:01:29]} 55. Nh4+ {[%emt 0:00:30]} Kh7 {[%emt 0:01:02]} 56. Nf5 {[%emt 0:01:50]} d1=Q {[%emt 0:00:43]} 57. Kf6 {[%emt 0:00:13]} Rc6+ {[%emt 0:00:29]} 58. Kf7 {[%emt 0:00:10]} Qd7+ {[%emt 0:00:29]} 0-1

[Event "4NCL Div 1 2024-25"]
[Site "England"]
[Date "2025.04.05"]
[Round "7.41"]
[White "Waldhausen Gordon, Frederick"]
[Black "Maroroa Jones, Gawain C B"]
[Result "1/2-1/2"]
[Annotator "TA"]
[ECO "C27"]
[WhiteElo "2361"]
[BlackElo "2654"]
[PlyCount "116"]
[EventDate "2024.11.23"]
[EventType "team-tourn"]
[EventCountry "ENG"]
[SourceTitle "playchess.com"]
[Source "ChessBase"]
[SourceQuality "1"]
[TimeControl "40/6000+30:3000+30"]

{[%evp 9,116,0,-4,-11,-3,0,0,0,0,11,7,12,14,-27,-22,-34,-12,-16,-5,-13,0,0,0,0,0,0,0,0,0,0,31,0,18,0,0,0,0,0,0,0,0,6,0,0,16,20,10,15,10,0,39,26,20,16,22,18,19,0,0,0,0,0,0,0,0,0,0,0,0,0,0,0,0,0,0,0,0,0,0,0,0,0,0,0,0,0,0,0,0,0,0,0,0,0,0,0,0,0,0,0,0,0,0,0,0,0,0,0,0]} 1. e4 {[%emt 0:10:02]} e5 {[%emt 0:10:30]} 2. Nc3 {[%emt 0:00:06]} Nf6 {[%emt 0:00:07]} 3. Bc4 {[%emt 0:00:07]} Bc5 {[%emt 0:01:40]} 4. Nf3 {[%emt 0:00:26]} d6 {[%emt 0:00:24]} 5. d3 {[%emt 0:00:42]} c6 {[%emt 0:01:49]} 6. a3 {[%emt 0:01:49] C27: Vienna Game: 2...Nf6 3 Bc4 Nxe4.} O-O {[%emt 0:02:05]} 7. O-O {[%emt 0:00:30]} a5 {[%emt 0:03:04]} 8. Ba2 {[%emt 0:01:05]} h6 {[%emt 0:09:41]} 9. Ne2 $146 {[%emt 0:03:32]} (9. Be3 Bxe3 10. fxe3 Be6 11. Bxe6 fxe6 12. d4 Nbd7 13. dxe5 Nxe5 14. Nxe5 dxe5 15. Qxd8 Rfxd8 {0-1 Ter Sahakyan,S (2640)-Demchenko,A (2641) PNWCC Online blitz JP 19th 2020 (4)}) 9... Bg4 {[%emt 0:06:00]} 10. Ng3 {[%emt 0:03:06]} Nh5 {[%emt 0:03:40]} 11. Nxh5 {[%emt 0:08:03] The position is symmetric and equal} Bxh5 {[%emt 0:00:17]} 12. h3 {[%emt 0:00:29]} Na6 {[%emt 0:06:01][%cal Bb8a6,Ba6c5,Bc5a4,Ba4c3][%mdl 32]} 13. Qe2 {[%emt 0:03:17]} Kh8 {[%emt 0:08:02]} 14. Be3 {[%emt 0:03:18]} Qc8 {[%emt 0:10:45]} 15. Bxc5 {[%emt 0:04:24]} Nxc5 {[%emt 0:05:47]} 16. Qe3 $1 {[%emt 0:01:13][%cal Of3e5]} Bxf3 {[%emt 0:05:15]} 17. Qxf3 {[%emt 0:00:35]} f5 {[%emt 0:00:05]} 18. exf5 {[%emt 0:00:54]} Rxf5 {[%emt 0:00:20]} 19. Qe3 {[%emt 0:01:24]} Qf8 {[%emt 0:01:05]} 20. b4 {[%emt 0:07:18]} Na4 {[%emt 0:01:35]} 21. c4 {[%emt 0:04:48]} Nc3 {[%emt 0:02:17]} 22. Qd2 {[%emt 0:02:17]} axb4 {[%emt 0:02:44]} 23. axb4 {[%emt 0:00:10]} Ra3 {[%emt 0:01:54] [#] aiming for ...Qa8.} 24. Qb2 {[%emt 0:00:44]} Rxa2 {[%emt 0:02:25]} 25. Rxa2 {[%emt 0:00:13]} (25. Qxc3 $2 {is the wrong capture.} Rfxf2 26. Rxa2 Rxf1+ 27. Kh2 Qf4+ 28. g3 Qf3 $19) 25... Nxa2 {[%emt 0:00:06]} 26. Qxa2 $11 {[%emt 0:00:04][%mdl 4096] Endgame KQR-KQR} Rg5 {[%emt 0:02:06]} 27. Qe2 {[%emt 0:03:41] Inhibits Qf3.} d5 {[%emt 0:01:04]} 28. cxd5 {[%emt 0:03:27]} cxd5 {[%emt 0:23:42]} 29. Rc1 {[%emt 0:00:16]} Kh7 {[%emt 0:00:00]} 30. Rc5 {[%emt 0:02:00]} Qf7 {[%emt 0:00:00]} 31. g3 {[%emt 0:04:48] The position is equal.} b6 {[%emt 0:00:00]} 32. Rc2 {[%emt 0:01:01]} Qf4 {[%emt 0:00:00]} 33. b5 {[%emt 0:02:06]} Qb4 {[%emt 0:00:00]} 34. Rb2 {[%emt 0:02:53]} Qd4 {[%emt 0:00:00]} 35. Kh2 {[%emt 0:01:48]} Rf5 {[%emt 0:00:00]} 36. Kg2 {[%emt 0:01:19]} h5 {[%emt 0:00:00]} 37. h4 {[%emt 0:01:05]} e4 {[%emt 0:00:00]} 38. dxe4 {[%emt 0:00:23]} dxe4 {[%emt 0:00:00]} 39. Rb3 {[%emt 0:02:00]} Qd5 {[%emt 0:05:30]} 40. Re3 {[%emt 0:00:24]} Re5 {[%emt 0:00:00]} 41. Kg1 {[%emt 0:52:23]} Qxb5 {[%emt 0:48:11]} 42. Qxb5 {[%emt 0:01:00]} Rxb5 {[%emt 0:00:04]} 43. Rxe4 {[%emt 0:00:06] KR-KR} Kg6 {[%emt 0:02:32]} 44. Re7 {[%emt 0:02:33]} Kf6 {[%emt 0:00:00]} 45. Rb7 {[%emt 0:29:11]} Rb2 {[%emt 0:00:00]} 46. Kg2 {[%emt 0:00:00]} g6 {[%emt 0:00:00]} 47. Kf3 {[%emt 0:00:00]} Ke5 {[%emt 0:00:00]} 48. Re7+ {[%emt 0:00:00]} Kf5 {[%emt 0:00:00]} 49. Rf7+ {[%emt 0:00:00]} Ke6 {[%emt 0:00:00]} 50. Rg7 {[%emt 0:00:00]} Kf6 {[%emt 0:04:43]} 51. Rb7 {[%emt 0:00:00]} b5 {[%emt 0:00:00]} 52. Ke4 {[%emt 0:00:00]} Re2+ {[%emt 0:00:00]} 53. Kf3 {[%emt 0:00:00]} Re5 {[%emt 0:00:00]} 54. Kf4 {[%emt 0:00:00]} Rc5 {[%emt 0:00:00]} 55. Rb6+ {[%emt 0:00:00]} Kf7 {[%emt 0:00:00]} 56. f3 {[%emt 0:00:00]} Rf5+ {[%emt 0:00:00]} 57. Ke4 {[%emt 0:00:00]} Rc5 {[%emt 0:00:00]} 58. Kf4 {[%emt 0:00:00]} Rf5+ {[%emt 0:00:00] An even fight not without its subleties.   Weighted Error Value: White=0.03 (flawless) /Black=0.04 (flawless)   Inaccurate:     	White=2     	Black=2      OK:         	White=17    	Black=21     Best:        	White=1     	Black=1      Strong:       	White=1     	---} 1/2-1/2

[Event "4NCL Div 1 2024-25"]
[Site "England"]
[Date "2025.04.05"]
[Round "7.42"]
[White "Alsina Leal, Daniel"]
[Black "Olson, Hamish"]
[Result "1-0"]
[Annotator "TA"]
[ECO "C95"]
[WhiteElo "2496"]
[BlackElo "2374"]
[PlyCount "81"]
[EventDate "2024.11.23"]
[EventType "team-tourn"]
[EventCountry "ENG"]
[SourceTitle "playchess.com"]
[Source "ChessBase"]
[SourceQuality "1"]
[TimeControl "40/6000+30:3000+30"]

{[%evp 21,81,39,37,28,39,-2,51,47,62,27,87,84,81,77,161,144,162,98,108,115,221,226,257,255,265,262,256,260,264,270,254,254,248,229,216,219,285,285,352,323,383,371,481,474,555,557,545,539,739,602,666,446,461,404,1000,430,428,428,434,418,398,388]} 1. e4 {[%emt 0:10:03]} e5 {[%emt 0:13:45]} 2. Nf3 {[%emt 0:00:13]} Nc6 {[%emt 0:00:18]} 3. Bb5 {[%emt 0:00:09]} a6 {[%emt 0:00:07]} 4. Ba4 {[%emt 0:00:05]} Nf6 {[%emt 0:00:07]} 5. O-O {[%emt 0:00:08]} Be7 {[%emt 0:00:06]} 6. Re1 {[%emt 0:00:11]} b5 {[%emt 0:00:09]} 7. Bb3 {[%emt 0:00:07]} d6 {[%emt 0:00:07]} 8. c3 {[%emt 0:00:25][%cal Bc2c3,Bc3c4][%mdl 32]} O-O {[%emt 0:00:11]} 9. h3 {[%emt 0:00:07]} Nb8 {[%emt 0:00:19]} 10. d4 {[%emt 0:00:16]} Nbd7 {[%emt 0:00:09]} 11. c4 {[%emt 0:00:26]} c6 {[%emt 0:02:42]} 12. Qc2 {[%emt 0:02:03] C95: Closed Ruy Lopez: Breyer Variation with 10 d4.} Bb7 {[%emt 0:21:57]} 13. a3 {[%emt 0:02:15]} Rc8 {[%emt 0:03:37]} (13... exd4 $11 14. Nxd4 bxc4 15. Bxc4 d5) 14. Nc3 $14 {[%emt 0:00:41] White is slightly better.} exd4 {[%emt 0:04:22]} 15. Nxd4 {[%emt 0:00:46]} bxc4 {[%emt 0:07:57]} (15... Re8 $11) 16. Bxc4 $16 {[%emt 0:00:21]} d5 {[%emt 0:01:01]} 17. Ba2 {[%emt 0:13:57]} c5 {[%emt 0:17:07]} (17... Bd6 $16) 18. Nf5 $18 {[%emt 0:00:57][%cal Bd4f5,Bf5e3,Be3c4,Bc4d6][%mdl 32]} (18. Bxd5 $2 Nxd5 (18... cxd4 19. Bxb7 Rc7 20. Bxa6 $17) 19. Nf5 Nc7 $19 (19... Nxc3 $2 20. Qxc3 Bf6 21. Qg3 $19)) 18... dxe4 $146 {[%emt 0:01:30][%csl Oa6,Oc5] Black has weak pawns} (18... d4 19. Nd5 Nxd5 20. exd5 Bf6 21. Nd6 Rb8 22. Nxb7 Rxb7 23. Bf4 Qb6 24. Rab1 a5 {1-0 Kubicka,A (2217)-Diermair,A (2446) EU-ch Blitz Katowice 2022 (13)}) 19. Bf4 {[%emt 0:02:29]} ({Better is} 19. Bg5 $18) 19... c4 $16 {[%emt 0:07:57]} 20. Rad1 {[%emt 0:02:49] White has more active pieces.} g6 {[%emt 0:01:48]} (20... Re8 $16 {is a better defense.}) 21. Ne3 $18 {[%emt 0:12:03]} Qe8 {[%emt 0:10:12]} 22. Nxc4 {[%emt 0:12:23]} (22. Bxc4 Nb6 $16) 22... Nc5 {[%emt 0:01:04]} 23. Nd6 {[%emt 0:05:39]} Bxd6 {[%emt 0:00:40]} 24. Bxd6 {[%emt 0:00:07]} (24. Rxd6 $6 Nd3 $16) 24... Nd3 {[%emt 0:02:42][%cal Oe8c6]} 25. Re2 {[%emt 0:09:40][%cal Be1e2,Be2d2,Bd2f2][%mdl 32]} Kg7 {[%emt 0:03:54]} 26. Bxf8+ {[%emt 0:06:18]} (26. Rxd3 $6 exd3 27. Bxf8+ (27. Rxe8 dxc2 28. Bxf8+ Kg8 $14) 27... Qxf8 28. Qxd3 Qc5 $16) 26... Qxf8 {[%emt 0:00:03]} 27. Qd2 {[%emt 0:02:26]} Qc5 {[%emt 0:03:23][%cal Od3f2]} 28. Qe3 {[%emt 0:04:19]} Qc7 {[%emt 0:00:26]} 29. Bb1 {[%emt 0:03:59]} Qc6 {[%emt 0:00:19]} 30. Red2 {[%emt 0:03:55]} Re8 {[%emt 0:00:48][%cal Bc8e8,Be8e5,Be5g5][%mdl 32]} 31. f3 {[%emt 0:09:47]} (31. Nxe4 $2 Rxe4 32. Rc2 (32. Qxd3 $2 Re1+ 33. Rxe1 Qxg2#) 32... Qd5 $17) 31... exf3 {[%emt 0:05:50]} 32. Qxd3 {[%emt 0:00:14]} Qe6 {[%emt 0:00:29]} 33. Ba2 {[%emt 0:01:34]} Qe5 {[%emt 0:00:27]} 34. Qd4 {[%emt 0:01:20]} Qg3 {[%emt 0:00:20][%cal Oe8e2]} 35. Rf2 {[%emt 0:02:25] [#]} Re5 {[%emt 0:00:45]} 36. Qd3 {[%emt 0:03:08]} Rg5 {[%emt 0:00:35]} 37. Qe3 {[%emt 0:00:33][%cal Oa2f7] and Bxf7! should not be overlooked} Nh5 {[%emt 0:00:49]} (37... Rh5 $142) 38. Bd5 {[%emt 0:00:31]} (38. Rd7 $142) 38... Nf4 {[%emt 0:00:51]} 39. Qxf3 {[%emt 0:00:30]} ({Less strong is} 39. Bxb7 Nxh3+ 40. Kf1 fxg2+ (40... Qxf2+ 41. Qxf2 Nxf2 42. Kxf2 $18) 41. Ke2 Qg4+ (41... g1=Q $2 {loses.} 42. Rxf7+ Kh6 43. Rxg1 $18) (41... Re5 42. Be4 $16) 42. Bf3 g1=Q 43. Rxg1 (43. Bxg4 Qxg4+ 44. Kd2 Nxf2 $16) 43... Nxg1+ 44. Kd2 Nxf3+ 45. Rxf3 (45. Qxf3 Qd4+ 46. Ke2 Rf5 $14) 45... h5 $16) 39... Nxh3+ {[%emt 0:00:18]} 40. Kf1 {[%emt 0:00:09]} Qxf2+ {[%emt 0:00:47]} 41. Qxf2 {[%emt 0:50:09] Weighted Error Value: White=0.60/Black=0.47  Mistake:       	White=2     	Black=5      Inaccurate:     	White=2     	Black=2      OK:         	White=13    	Black=8      Best:        	White=2     	Black=2} 1-0

[Event "4NCL Div 1 2024-25"]
[Site "England"]
[Date "2025.04.05"]
[Round "7.43"]
[White "Vijayakumar, Rishi"]
[Black "Plat, Vojtech"]
[Result "0-1"]
[Annotator "TA"]
[ECO "D80"]
[WhiteElo "2172"]
[BlackElo "2479"]
[PlyCount "150"]
[EventDate "2024.11.23"]
[EventType "team-tourn"]
[EventCountry "ENG"]
[SourceTitle "playchess.com"]
[Source "ChessBase"]
[SourceQuality "1"]
[TimeControl "40/6000+30:3000+30"]

{[%evp 9,150,19,25,13,22,6,19,7,18,16,4,13,36,-2,46,43,57,56,83,80,81,47,50,59,52,56,53,45,65,74,79,51,56,5,47,18,29,37,60,25,44,28,40,0,0,0,0,-11,-11,-204,0,-206,-203,-203,-186,-203,-203,-203,-203,-203,-203,-203,-203,-203,-203,-203,-203,-203,-203,-203,-203,-203,-203,-203,-203,-203,-203,-203,-203,-203,-203,-203,-203,-203,-203,-203,-203,-203,-203,-203,-203,-203,-203,-203,-203,-203,-203,-203,-203,-203,-203,-203,-203,-203,-203,-531,-507,-499,-447,-488,-498,-700,-691,-558,-398,-432,0,-651,-634,-618,-529,-1047,-566,-1147,-1135,-1641,-1558,-1900,-1908,-2324,-2325,-29976,-29977,-29977,-29978,-29978,-29979,-6214,-5691,-29993,-29994,-29994,-1151]} 1. d4 {[%emt 0:10:06]} Nf6 {[%emt 0:11:59][%cal Bg8f6,Bf6e4,Be4c3][%mdl 32]} 2. c4 {[%emt 0:00:05]} g6 {[%emt 0:00:07]} 3. Nc3 {[%emt 0:02:02]} d5 {[%emt 0:00:08]} 4. Bg5 {[%emt 0:00:09]} Ne4 {[%emt 0:00:24]} 5. h4 {[%emt 0:00:13]} Nxc3 {[%emt 0:06:18]} 6. bxc3 {[%emt 0:00:01] D80: Grünfeld: Unusual White 4th moves and 4 Bg5.} Bg7 {[%emt 0:00:18]} 7. cxd5 {[%emt 0:00:14]} Qxd5 {[%emt 0:00:57]} 8. e3 {[%emt 0:00:13][%cal Be2e3,Be3e4][%mdl 32] The position is equal.} c5 {[%emt 0:00:57]} 9. Qf3 {[%emt 0:00:24]} Qxf3 {[%emt 0:01:04]} 10. Nxf3 {[%emt 0:00:04]} Nc6 {[%emt 0:00:16]} 11. Be2 $146 {[%emt 0:01:54]} (11. Rb1 h6 12. Bf4 O-O 13. Bd3 Rd8 14. Ke2 b6 15. Be4 Ba6+ 16. Ke1 Rac8 17. Bg3 cxd4 18. cxd4 {1-0 Jobava,B (2603)-Wagner,D (2581) Titled Tuesday intern op 14th April blitz 2020 (5)}) 11... e5 {[%emt 0:04:15]} (11... cxd4 $11 {feels stronger.} 12. cxd4 Bf5) 12. d5 $14 {[%emt 0:07:45] NOTEXT-51077 White (d5)} (12. dxc5 $2 h6 13. Rb1 hxg5 14. Nxg5 Ke7 $19) 12... Na5 {[%emt 0:12:34]} 13. e4 {[%emt 0:03:15]} b6 {[%emt 0:00:17]} 14. h5 {[%emt 0:04:27]} h6 {[%emt 0:00:54]} 15. Be3 {[%emt 0:02:49]} g5 {[%emt 0:00:18]} 16. Nd2 {[%emt 0:04:56]} f5 {[%emt 0:01:23][%cal Bf7f5,Bf5f4][%mdl 32]} 17. f3 {[%emt 0:08:45]} f4 {[%emt 0:00:13]} 18. Bf2 {[%emt 0:00:12]} Ke7 {[%emt 0:00:49]} 19. Nb3 {[%emt 0:01:45] aiming for Nxa5.} Nb7 {[%emt 0:00:22]} 20. a4 {[%emt 0:01:34]} Nd6 {[%emt 0:02:01][%cal Og5g4]} 21. Kd1 {[%emt 0:04:45]} ({White should try} 21. a5 $14 Bd7 22. Nd2) 21... Bd7 {[%emt 0:01:07][%cal Og5g4]} 22. Kc2 {[%emt 0:00:21]} Bf6 {[%emt 0:02:44]} 23. Nd2 {[%emt 0:22:54]} Rhc8 {[%emt 0:04:01]} 24. Nc4 {[%emt 0:00:48]} Rab8 {[%emt 0:01:35]} 25. Nxd6 {[%emt 0:02:06]} Kxd6 {[%emt 0:00:02]} 26. Rhb1 {[%emt 0:00:16]} g4 {[%emt 0:04:16][%cal Bg5g4,Bg4g3][%mdl 32]} 27. Bb5 {[%emt 0:03:23]} Rg8 {[%emt 0:03:03]} 28. Kd3 {[%emt 0:05:12]} g3 {[%emt 0:04:05]} 29. Bg1 $2 {[%emt 0:00:20] [#] White is weak on the dark squares. Black converts the advantage convincingly.} (29. Bxd7 $11 Kxd7 30. Be1) 29... Bxb5+ $2 {[%emt 0:48:33]} ({Black should play} 29... a5 $1 $19 {Strongly threatening ...Be7.} 30. Kc4 Be7) 30. Rxb5 $2 {[%emt 0:01:48]} (30. axb5 $11 Rb7 31. Ra6) 30... a6 $19 {[%emt 0:00:00]} 31. Rb2 {[%emt 0:00:15]} Be7 {[%emt 0:00:00]} 32. c4 {[%emt 0:04:58] [#]} a5 $1 {[%emt 0:00:00]} 33. Ke2 {[%emt 0:00:34]} Kc7 {[%emt 0:00:00]} 34. Kf1 {[%emt 0:00:16]} Bd6 {[%emt 0:00:00]} 35. Raa2 {[%emt 0:00:18]} Rg5 {[%emt 0:00:00]} 36. Rb3 {[%emt 0:00:08]} Rxh5 {[%emt 0:00:00]} 37. Rc2 {[%emt 0:00:07]} Rg5 {[%emt 0:00:00]} 38. Ra2 {[%emt 0:00:18]} Rg6 {[%emt 0:00:00]} 39. Rc2 {[%emt 0:00:16]} h5 {[%emt 0:00:00]} 40. Ra2 {[%emt 0:00:14]} h4 {[%emt 0:00:00]} 41. Rc2 {[%emt 0:50:49]} Be7 {[%emt 0:18:28]} 42. Rd2 {[%emt 0:01:39]} Rbg8 {[%emt 0:01:15]} 43. Rbb2 {[%emt 0:00:13]} Bd8 {[%emt 0:03:53]} 44. Rbc2 {[%emt 0:00:20]} Kd7 {[%emt 0:00:06]} 45. Rb2 {[%emt 0:00:22]} Rh8 {[%emt 0:02:03]} 46. Rdc2 {[%emt 0:04:04]} Ke8 {[%emt 0:00:16]} 47. Rd2 {[%emt 0:00:10]} Rh5 {[%emt 0:00:08]} 48. Rbc2 {[%emt 0:00:43]} Kf7 {[%emt 0:00:06]} 49. Rb2 {[%emt 0:00:17]} Rgh6 {[%emt 0:00:09]} 50. Rd3 {[%emt 0:01:03]} h3 {[%emt 0:00:28]} 51. gxh3 {[%emt 0:00:04]} Rxh3 {[%emt 0:00:10]} 52. Rg2 {[%emt 0:00:21]} Rh1 {[%emt 0:02:49]} 53. Rb3 {[%emt 0:00:30]} Kf6 {[%emt 0:05:40]} 54. Rb5 {[%emt 0:01:11]} Kg5 {[%emt 0:00:50]} 55. Rbb2 {[%emt 0:03:48]} Kh4 {[%emt 0:01:06]} 56. Ke2 {[%emt 0:04:34]} Kh3 {[%emt 0:00:07]} 57. Kd3 $2 {[%emt 0:02:35]} (57. Kf1 {is more resistant.}) 57... Rg6 {[%emt 0:00:30]} 58. Rbd2 {[%emt 0:00:00]} Be7 {[%emt 0:00:00]} 59. Rb2 {[%emt 0:00:00]} Rg8 {[%emt 0:00:00]} 60. Rbc2 {[%emt 0:00:00]} (60. Kc3 $142 Rh8 61. Rbe2) 60... Rc8 {[%emt 0:00:00]} 61. Kc3 {[%emt 0:00:00]} Bh4 {[%emt 0:00:00]} 62. Rb2 {[%emt 0:00:00]} Be7 {[%emt 0:00:00]} (62... Rg8 $142 63. Kd3 Rg6) 63. Rbc2 $1 {[%emt 0:00:00] [#]} b5 $1 {[%emt 0:00:00][%mdl 512]} 64. cxb5 {[%emt 0:00:00]} c4 {[%emt 0:00:00]} 65. b6 {[%emt 0:00:00]} Bb4+ {[%emt 0:00:00]} 66. Kb2 {[%emt 0:00:00]} Be1 {[%emt 0:00:00]} 67. d6 {[%emt 0:00:00]} c3+ {[%emt 0:00:00]} 68. Ka2 {[%emt 0:00:00]} Bd2 {[%emt 0:00:00]} (68... Rc4 $2 69. d7 Bd2 (69... Rxa4+ $2 70. Kb3 $18) 70. Bc5 (70. d8=R $2 Rxa4+ 71. Kb3 Rb4+ 72. Ka2 Kxg2 $19) 70... Rxa4+ (70... Kxg2 71. d8=Q $16) 71. Kb3 Kxg2 72. d8=Q $18 (72. d8=B $2 Rb4+ 73. Bxb4 Rb1+ 74. Ka2 Rxb4 $19)) 69. b7 {[%emt 0:04:30]} Rb8 {[%emt 0:00:00]} (69... Kxg2 $2 70. bxc8=Q (70. bxc8=R Rh6 $18) 70... Rh6 71. Qxc3 Rxd6 72. Qxe5 $18 (72. Rxd2+ Rxd2+ 73. Qxd2+ Kxg1 $18)) 70. Rgxd2 {[%emt 0:08:07]} cxd2 {[%emt 0:00:00]} 71. Rxd2 {[%emt 0:00:00]} Rxg1 {[%emt 0:00:00]} 72. d7 {[%emt 0:00:07]} Rg2 {[%emt 0:00:00]} (72... Rxb7 73. d8=Q (73. d8=B $2 {loses.} g2 $19) 73... g2 74. Qg8 (74. Qxa5 {is a self mate.} Ra1+ 75. Kxa1 g1=Q+) (74. Qc8+ Kh2 75. Qxb7 Kg3 76. Qb6 Kxf3 77. Qxg1 Kxe4 78. Qb1+ Kf3 79. Qd3+ Kg4 80. Rxg2+ Kh5 81. Qh7#) 74... Kh2 75. Qg6) 73. d8=Q {[%emt 0:00:52]} Rxd8 {[%emt 0:00:00]} 74. Ka3 {[%emt 0:00:26]} Rgxd2 {[%emt 0:00:00][%cal Rd8d3]} 75. b8=R {[%emt 0:00:09]} R8d3+ {[%emt 0:00:00] Weighted Error Value: White=0.31/Black=0.10 (very precise)   Loses game:     	White=2     	---        Missed win:     	---       	Black=1      Mistake:       	White=3     	Black=2      Inaccurate:     	White=8     	Black=2      OK:         	White=12    	Black=29     Best:        	White=1     	Black=2      Strong:       	White=1     	Black=1      Brilliant:      	---       	Black=1} (75... g2 $142 76. Rxd8 Rxd8 (76... g1=Q 77. Rh8+ Kg3 78. Rg8+ Kf2 79. Rxg1 Kxg1 80. Kb3 Rd4 81. Kc2 Kf1 82. Kc1 Ke2 83. Kc2 Rc4+ 84. Kb3 Kd3 85. Kb2 Rb4+ 86. Ka2 Kd2 87. Ka1 Kc2 88. Ka2 Rxa4#) 77. Kb3 g1=Q (77... g1=B $2 78. Kc4 $19) 78. Kc4 Qc1+ 79. Kb5 Rd6 80. Kxa5 Qc5#) 0-1